Cogmind - Beta 13 @@@ ROGUE MODE // 2024.06.07 @ 12:19:49 Player: Sionnis Result: Self-destructed Performance ------------- Evolutions (5) 2500 Regions Visited (10) 2000 Robots Destroyed (11) 55 Value Destroyed (193) 193 Prototype IDs (28) 560 Alien Tech Used (0) 0 Bonus (1364) 1364 TOTAL SCORE: 6672 Bonus ------- Pacifist 564 Entered DSFs 500 Aligned with FarCom 300 Cogmind --------- Core Integrity 809/1000 Matter 295/300 Energy 150/150 System Corruption 0% Temperature Cool (0) Movement Flying (120) Ox1 Location -5/Factory Parts ------- > --- POWER (1) -------- Micro Nuclear Core > --- PROPULSION (7) --- Nuclear Pulse Thruster > --- UTILITY (7) ------ Hacking Suite Hacking Suite Hacking Suite Hacking Suite > --- WEAPON (2) ------- Mini Grenade Launcher Flail > --- INVENTORY (5) ---- Gravity Neutralizer Hardened Medium Armor Plating Improved Medium Armor Plating Hacking Suite Peak State ------------ > --- POWER ------------ Light Deuterium Engine > --- PROPULSION ------- VTOL Module Cesium-ion Thruster Xenon Bombardment Thruster Nuclear Pulse Thruster Nuclear Pulse Thruster Nuclear Pulse Thruster > --- UTILITY ---------- Power Amplifier Structural Scanner Hacking Suite Hacking Suite Hacking Suite Hacking Suite > --- WEAPON ----------- Mini Grenade Launcher Flail > --- INVENTORY -------- Micro Nuclear Core Gravity Neutralizer Hardened Medium Armor Plating Improved Medium Armor Plating Hacking Suite [Rating: 51] Favorites ----------- Power Light Deuterium Engine Engine Light Deuterium Engine Power Core Micro Nuclear Core Propulsion Xenon Bombardment Thruster Flight Unit Xenon Bombardment Thruster Utility Hacking Suite Device Structural Scanner Processor Improved Signal Interpreter Hackware Hacking Suite Protection Improved Medium Armor Plating Weapon Flail Energy Cannon Cooled Plasma Cannon Launcher Mini Grenade Launcher Impact Weapon Flail Build | -11 -10 -9 -9 -9 -8 -8 -7 -7 -6 -5 ------- Run | Yrd Mat Mat Min Exi Min Mat Fac DSF Fac Fac Slots Evolved 10 | . . 2 . . . 2 2 . 2 2 Power . | . . . . . . . . . . . Propulsion 5 | . . 1 . . . 1 1 . 1 1 Utility 5 | . . 1 . . . 1 1 . 1 1 Weapon . | . . . . . . . . . . . Parts Attached 38 | 1 3 3 1 . 1 8 4 7 5 5 Power 3 | 1 . . . . . . 1 . . 1 Engine 2 | 1 . . . . . . 1 . . . Core 1 | . . . . . . . . . . 1 Reactor . | . . . . . . . . . . . Propulsion 17 | . 2 1 . . 1 6 1 2 1 3 Treads . | . . . . . . . . . . . Leg . | . . . . . . . . . . . Wheel . | . . . . . . . . . . . Hover . | . . . . . . . . . . . Flight 17 | . 2 1 . . 1 6 1 2 1 3 Utility 12 | . 1 . . . . 2 1 3 4 1 Device 3 | . 1 . . . . . . . 1 1 Storage . | . . . . . . . . . . . Processor 1 | . . . . . . 1 . . . . Hackware 4 | . . . . . . . . 3 1 . Protection 4 | . . . . . . 1 1 . 2 . Artifact . | . . . . . . . . . . . Weapon 6 | . . 2 1 . . . 1 2 . . Energy Gun . | . . . . . . . . . . . Energy Cannon 1 | . . . . . . . . 1 . . Ballistic Gun . | . . . . . . . . . . . Ballistic Cannon . | . . . . . . . . . . . Launcher 2 | . . . 1 . . . . 1 . . Special Weapon . | . . . . . . . . . . . Impact Weapon 3 | . . 2 . . . . 1 . . . Slashing Weapon . | . . . . . . . . . . . Piercing Weapon . | . . . . . . . . . . . Special Melee Weapon . | . . . . . . . . . . . Unidentified Prototypes 2 | . . . . . . . . 1 1 . Parts Lost 15 | . . . . . . . . 4 1 10 Power 1 | . . . . . . . . . . 1 Propulsion 10 | . . . . . . . . 2 1 7 Utility 4 | . . . . . . . . 2 . 2 Weapon . | . . . . . . . . . . . Highest Loss Streak 9 | . . . . . . . . 2 1 9 To Critical Strikes . | . . . . . . . . . . . Average Slot Usage (%) 82 | . 44 64 71 77 77 83 84 78 99 80 Engine 6 | . 14 11 11 11 11 9 7 7 6 4 Flight 32 | . 24 33 33 33 33 36 38 37 39 27 Device 6 | . 6 11 11 11 11 9 7 7 6 5 Hackware 16 | . . . . . . . . 2 26 23 Protection 4 | . . . . . . 7 7 7 6 4 Launcher 5 | . . . 5 11 11 9 7 6 6 5 Impact Weapon 6 | . . 9 11 11 11 9 7 7 6 5 Naked Turns . | . . . . . . . . . . . Heaviest Build 17 | 3 4 6 7 7 7 14 16 12 16 17 Greatest Support 38 | 3 8 12 12 12 13 20 24 26 38 28 Greatest Overweight (x) 1 | . . . . . . . . . . 1 Average Overweight (x) . | . . . . . . . . . . . Largest Inventory Capacity 5 | 5 5 5 5 5 5 5 5 5 5 5 Average Capacity 5 | 5 5 5 5 5 5 5 5 5 5 5 Most Carried 5 | . 3 4 3 4 5 5 4 5 5 5 Average Carried 4 | . 1 2 3 3 4 4 3 2 4 4 Final Capacity 5 | 5 5 5 5 5 5 5 5 5 5 5 Final Carried 5 | . 3 3 3 4 5 4 2 5 5 4 Class Distribution -------------------- 68% | Hacker-Sprinter 30% | Sprinter Dominant Class ---------------- Sprinter | -10/Materials Sprinter | -9/Materials Sprinter | -9/Mines Sprinter | -9/Exiles Sprinter | -8/Mines Sprinter | -8/Materials Sprinter | -7/Factory Sprinter | -7/DSF Hacker-Sprinter | -6/Factory Hacker-Sprinter | -5/Factory Resources | -11 -10 -9 -9 -9 -8 -8 -7 -7 -6 -5 ----------- Run | Yrd Mat Mat Min Exi Min Mat Fac DSF Fac Fac Matter Collected 526 | 134 . . 37 109 10 80 . 2 138 16 Remotely . | . . . . . . . . . . . Salvage Created 253 | . . . . . 20 113 . . 70 50 Parts 8 | . . . . . . 7 . . . 1 Haulers Intercepted 1 | . . . . . . 1 . . . . Recyclers Shooed . | . . . . . . . . . . . Parts Field Recycled . | . . . . . . . . . . . Retrieved Matter . | . . . . . . . . . . . Parts Self-Destructed . | . . . . . . . . . . . Prevented . | . . . . . . . . . . . Kills | -11 -10 -9 -9 -9 -8 -8 -7 -7 -6 -5 ------- Run | Yrd Mat Mat Min Exi Min Mat Fac DSF Fac Fac Combat Hostiles Destroyed . | . . . . . . . . . . . Classes Destroyed 4 | . . . . . . 3 . . 1 . Builder 2 | . . . . . . . . . 2 . Hauler 1 | . . . . . . 1 . . . . Operator 3 | . . . . . . 1 . . 1 1 Watcher 5 | . . . . . . 2 . . 1 2 Best Kill Streak 3 | . . . . . . 3 . . 2 1 Combat Bots Only . | . . . . . . . . . . . Max Kills in Single Turn 1 | . . . . . . 1 . . 1 1 Gunslinging . | . . . . . . . . . . . Exploded . | . . . . . . . . . . . Melee . | . . . . . . . . . . . Uniques/NPCs Destroyed . | . . . . . . . . . . . Combat | -11 -10 -9 -9 -9 -8 -8 -7 -7 -6 -5 -------- Run | Yrd Mat Mat Min Exi Min Mat Fac DSF Fac Fac Hostile Shots Fired 143 | . . 7 10 . 14 . . 35 42 35 Missed 85 | . . 5 5 . 6 . . 23 26 20 Damage Taken 1185 | . . 29 43 . 99 . . 340 127 547 Core 296 | . . 17 16 . 21 . . 51 . 191 Absorbed by Shields 19 | . . . . . . . . 19 . . Core Remaining (%) 96 | 100 100 . . . 86 100 . 92 100 . Volleys Fired . | . . . . . . . . . . . Largest . | . . . . . . . . . . . Hottest . | . . . . . . . . . . . Shots Fired . | . . . . . . . . . . . Gun . | . . . . . . . . . . . Cannon . | . . . . . . . . . . . Launcher . | . . . . . . . . . . . Special . | . . . . . . . . . . . Kinetic . | . . . . . . . . . . . Thermal . | . . . . . . . . . . . Explosive . | . . . . . . . . . . . Electromagnetic . | . . . . . . . . . . . Robot Hit Streak . | . . . . . . . . . . . Robot Miss Streak . | . . . . . . . . . . . Penetration Max . | . . . . . . . . . . . Secondary Targets . | . . . . . . . . . . . Shots Hit Robots 13 | . . . . . 1 6 . . 4 2 Core Hits 2 | . . . . . . 2 . . . . Critical Kills . | . . . . . . . . . . . Critical Parts Destroyed 2 | . . . . . . . . . 1 1 Critical Strikes 2 | . . . . . . . . . 1 1 Smash 2 | . . . . . . . . . 1 1 Melee Attacks 22 | . . 1 . . 1 11 . . 5 4 Impact 22 | . . 1 . . 1 11 . . 5 4 Slashing . | . . . . . . . . . . . Piercing . | . . . . . . . . . . . Sneak Attacks 7 | . . . . . . 3 . . 4 . Combat Hostiles . | . . . . . . . . . . . Follow-up Attacks . | . . . . . . . . . . . Damage Inflicted 1034 | . . . . . 93 428 . . 415 98 Guns . | . . . . . . . . . . . Cannons . | . . . . . . . . . . . Explosions . | . . . . . . . . . . . Melee 1034 | . . . . . 93 428 . . 415 98 Ramming . | . . . . . . . . . . . Kinetic . | . . . . . . . . . . . Thermal . | . . . . . . . . . . . Explosive . | . . . . . . . . . . . Electromagnetic . | . . . . . . . . . . . Impact 1034 | . . . . . 93 428 . . 415 98 Slashing . | . . . . . . . . . . . Piercing . | . . . . . . . . . . . Highest Corruption 6 | . . . . . . . . . 6 . Average Corruption 5 | . . . . . . . . . 5 . Corruption Purged . | . . . . . . . . . . . Corruption Blocked . | . . . . . . . . . . . Effects 4 | . . . . . . . . . 4 . Message Errors 1 | . . . . . . . . . 1 . Energy Discharges 2 | . . . . . . . . . 2 . Data Loss (minor) 1 | . . . . . . . . . 1 . Overload Shots . | . . . . . . . . . . . Overflow Damage 560 | . . . . . 84 87 . . 321 68 Projectiles . | . . . . . . . . . . . Explosions . | . . . . . . . . . . . Melee 560 | . . . . . 84 87 . . 321 68 Knockbacks 3 | . . . . . . 1 . . 2 . Impact 3 | . . . . . . 1 . . 2 . Kinetic . | . . . . . . . . . . . Secondary . | . . . . . . . . . . . Self-Inflicted Damage . | . . . . . . . . . . . Shots . | . . . . . . . . . . . Rammed . | . . . . . . . . . . . Targets Rammed . | . . . . . . . . . . . Kicked . | . . . . . . . . . . . Crushed . | . . . . . . . . . . . Highest Temperature 15 | . . . . . 7 . 15 . 10 9 Average Temperature 5 | . . . . . 4 . 6 . 4 5 Received Heat Transfer 102 | . . 6 . . 36 . . 9 24 27 Siege Activations . | . . . . . . . . . . . Robots Corrupted . | . . . . . . . . . . . Combat Hostiles . | . . . . . . . . . . . Parts Fried 16 | . . . . . 1 3 . . 11 1 Impact Corruptions 19 | . . . . . 1 4 . . 10 4 Robots Melted . | . . . . . . . . . . . Combat Hostiles . | . . . . . . . . . . . Parts Melted . | . . . . . . . . . . . Heat Transferred . | . . . . . . . . . . . Parts Sabotaged . | . . . . . . . . . . . Parts Stolen . | . . . . . . . . . . . Parts Stripped . | . . . . . . . . . . . Power Chain Reactions . | . . . . . . . . . . . Alert | -11 -10 -9 -9 -9 -8 -8 -7 -7 -6 -5 ------- Run | Yrd Mat Mat Min Exi Min Mat Fac DSF Fac Fac Peak Influence 342 | . 51 133 51 . 110 51 23 54 342 244 Initial 59 | . . 21 51 . . 42 23 19 20 59 Average 59 | . 23 74 51 . 49 36 23 31 106 46 Maximum Alert Level 1 | . . . . . . . . . 1 1 Low Security (%) 95 | 100 100 100 100 . 100 100 100 100 82 99 Level 1 4 | . . . . . . . . . 17 . Level 2 . | . . . . . . . . . . . Level 3 . | . . . . . . . . . . . Level 4 . | . . . . . . . . . . . Level 5 . | . . . . . . . . . . . High Security . | . . . . . . . . . . . Max Security . | . . . . . . . . . . . Squads Dispatched 6 | . . . . . . . . 1 2 3 Investigation 2 | . . . . . . . . . . 2 Extermination 1 | . . . . . . . . . . 1 Reinforcement 3 | . . . . . . . . 1 2 . Assault . | . . . . . . . . . . . Garrison . | . . . . . . . . . . . Intercept . | . . . . . . . . . . . Searches Triggered . | . . . . . . . . . . . Construction Impeded . | . . . . . . . . . . . Haulers Reinforced . | . . . . . . . . . . . Active Scanning Responses . | . . . . . . . . . . . Cargo Convoy Interrupts . | . . . . . . . . . . . Stealth | -11 -10 -9 -9 -9 -8 -8 -7 -7 -6 -5 --------- Run | Yrd Mat Mat Min Exi Min Mat Fac DSF Fac Fac Distress Signals 2 | . . . . . . . . . 1 1 Communications Jammed . | . . . . . . . . . . . Distress Signals . | . . . . . . . . . . . Times Spotted 77 | . 3 5 6 . 10 2 . 10 11 30 Peak Tracking Total 13 | . 2 5 3 . 8 2 . 8 9 13 Tactical Retreats 13 | . . 1 . . 2 . . 2 2 6 Traps | -11 -10 -9 -9 -9 -8 -8 -7 -7 -6 -5 ------- Run | Yrd Mat Mat Min Exi Min Mat Fac DSF Fac Fac Traps Triggered 5 | . . . . . . . . 2 1 2 Indirectly . | . . . . . . . . . . . Trap Hack Attempts . | . . . . . . . . . . . Triggered . | . . . . . . . . . . . Disarmed . | . . . . . . . . . . . Reprogrammed . | . . . . . . . . . . . Reused . | . . . . . . . . . . . Traps Extracted . | . . . . . . . . . . . Installed . | . . . . . . . . . . . Triggered . | . . . . . . . . . . . Machines | -11 -10 -9 -9 -9 -8 -8 -7 -7 -6 -5 ---------- Run | Yrd Mat Mat Min Exi Min Mat Fac DSF Fac Fac Machines Disabled . | . . . . . . . . . . . Max in Single Turn . | . . . . . . . . . . . Garrison Access 1 | . . . . . . . . . . 1 Machines Repaired . | . . . . . . . . . . . Machines Dismantled . | . . . . . . . . . . . Machines Sabotaged . | . . . . . . . . . . . Overloaded Fab Kills . | . . . . . . . . . . . Hacking | -11 -10 -9 -9 -9 -8 -8 -7 -7 -6 -5 --------- Run | Yrd Mat Mat Min Exi Min Mat Fac DSF Fac Fac Machines Accessed 19 | . 1 1 . 2 . 1 2 . 5 7 Terminals 14 | . 1 1 . . . 1 2 . 3 6 Fabricators 1 | . . . . . . . . . 1 . Repair Stations . | . . . . . . . . . . . Recycling Units 1 | . . . . . . . . . 1 . Scanalyzers . | . . . . . . . . . . . Garrison Access 1 | . . . . . . . . . . 1 Total Hacks 40 | . 4 3 . 2 . 4 2 . 8 17 Successful 23 | . 1 1 . 2 . 2 1 . 7 9 Failed 17 | . 3 2 . . . 2 1 . 1 8 Catastrophic 4 | . 1 . . . . 1 1 . . 1 Database Lockouts . | . . . . . . . . . . . Manual 10 | . 4 1 . 1 . . . . 2 2 Terminals 33 | . 4 3 . . . 4 2 . 5 15 Fabricators 1 | . . . . . . . . . 1 . Repair Stations . | . . . . . . . . . . . Recycling Units 2 | . . . . . . . . . 2 . Scanalyzers . | . . . . . . . . . . . Garrison Access 2 | . . . . . . . . . . 2 Terminal Hacks 18 | . 1 1 . 2 . 2 1 . 3 8 Record 1 | . . . . 1 . . . . . . Robot Analysis 2 | . 1 1 . . . . . . . . Prototype ID Bank 1 | . . . . . . . . . . 1 Open DSF 2 | . . . . . . . 1 . 1 . Level Access Points 1 | . . . . . . . . . . 1 Branch Access Points 1 | . . . . . . . . . . 1 Emergency Access Points 1 | . . . . . . . . . . 1 Machine Index 2 | . . . . . . . . . 1 1 Alert Level 2 | . . . . . . 1 . . . 1 Unreport Threat 2 | . . . . . . 1 . . . 1 Locate Traps 1 | . . . . . . . . . 1 . Recall Reinforcements 1 | . . . . . . . . . . 1 Derelict Proto ID Bank 1 | . . . . 1 . . . . . . Fabricator Hacks 1 | . . . . . . . . . 1 . Network Status 1 | . . . . . . . . . 1 . Repair Station Hacks . | . . . . . . . . . . . Recycling Unit Hacks 2 | . . . . . . . . . 2 . Report Inventory 1 | . . . . . . . . . 1 . Retrieve Components 1 | . . . . . . . . . 1 . Scanalyzer . | . . . . . . . . . . . Garrison Access Hacks 1 | . . . . . . . . . . 1 Seal Access 1 | . . . . . . . . . . 1 Unauthorized Hacks 1 | . . . . . . . . . 1 . Terminals 1 | . . . . . . . . . 1 . Assimilate 1 | . . . . . . . . . 1 . Fabricators . | . . . . . . . . . . . Repair Stations . | . . . . . . . . . . . Recycling Units . | . . . . . . . . . . . Scanalyzers . | . . . . . . . . . . . Garrison Access . | . . . . . . . . . . . Data Cores Recovered 2 | . . . . . . 1 . . . 1 Used 1 | . . . . . . 1 . . . . Hacking Detections 12 | . 1 1 . . . 1 1 . 3 5 Full Trace Events 2 | . . . . . . . . . . 2 Feedback Events . | . . . . . . . . . . . Feedback Blocked . | . . . . . . . . . . . Robot Schematics Acquired . | . . . . . . . . . . . Robots Built . | . . . . . . . . . . . Authchips . | . . . . . . . . . . . Time . | . . . . . . . . . . . Total Robot Build Rating . | . . . . . . . . . . . Part Schematics Acquired . | . . . . . . . . . . . Parts Built . | . . . . . . . . . . . Authchips . | . . . . . . . . . . . Time . | . . . . . . . . . . . Total Part Build Rating . | . . . . . . . . . . . Parts Repaired . | . . . . . . . . . . . Time . | . . . . . . . . . . . Parts Recycled . | . . . . . . . . . . . Recycled Matter . | . . . . . . . . . . . Retrieved Matter . | . . . . . . . . . . . Retrieved Components 2 | . . . . . . . . . 2 . Parts Scanalyzed . | . . . . . . . . . . . Part Schematics Acquired . | . . . . . . . . . . . Parts Damaged . | . . . . . . . . . . . Bothacking | -11 -10 -9 -9 -9 -8 -8 -7 -7 -6 -5 ------------ Run | Yrd Mat Mat Min Exi Min Mat Fac DSF Fac Fac Used RIF Installer . | . . . . . . . . . . . Robots Hacked . | . . . . . . . . . . . Non-combat . | . . . . . . . . . . . Combat . | . . . . . . . . . . . Robot Hacks Applied . | . . . . . . . . . . . Relay Couplers Released . | . . . . . . . . . . . Fabnet Peak Effective % . | . . . . . . . . . . . Robots Rewired . | . . . . . . . . . . . Allies Hacked . | . . . . . . . . . . . Hacks Repelled . | . . . . . . . . . . . Allies | -11 -10 -9 -9 -9 -8 -8 -7 -7 -6 -5 -------- Run | Yrd Mat Mat Min Exi Min Mat Fac DSF Fac Fac Total Allies 1 | . . . . . . . . . 1 . Largest Group 1 | . . . . . . . . . 1 . Highest-Rated Group 26 | . . . . . . . . . 26 . Highest-Rated Ally 26 | . . . . . . . . . 26 . Total Orders . | . . . . . . . . . . . Ally Attacks . | . . . . . . . . . . . Total Damage . | . . . . . . . . . . . Kills . | . . . . . . . . . . . Allies Corrupted . | . . . . . . . . . . . Allies Melted . | . . . . . . . . . . . Intel | -11 -10 -9 -9 -9 -8 -8 -7 -7 -6 -5 ------- Run | Yrd Mat Mat Min Exi Min Mat Fac DSF Fac Fac Robot Analysis Total 2 | . 1 1 . . . . . . . . Derelict Logs Recovered 1 | . . . 1 . . . . . . . Drone Launches . | . . . . . . . . . . . Drone Recoveries . | . . . . . . . . . . . Exploration | -11 -10 -9 -9 -9 -8 -8 -7 -7 -6 -5 ------------- Run | Yrd Mat Mat Min Exi Min Mat Fac DSF Fac Fac Turns Passed 1696 | 19 74 67 27 73 61 100 34 92 417 732 Spaces Moved 3910 | 19 190 189 88 247 189 175 108 218 1507 980 Core 49 | 19 30 . . . . . . . . . Treads . | . . . . . . . . . . . Legs . | . . . . . . . . . . . Wheels . | . . . . . . . . . . . Hover . | . . . . . . . . . . . Flight 3861 | . 160 189 88 247 189 175 108 218 1507 980 Fastest Speed 23 | 50 32 29 29 29 29 26 23 23 25 26 Average Speed 26 | 50 34 29 29 29 29 26 23 24 25 27 Slowest Speed 120 | 50 50 29 29 29 29 29 26 27 28 120 Overloaded Moves . | . . . . . . . . . . . Propulsion Burnouts . | . . . . . . . . . . . Robots Hopped 25 | . 2 1 1 . 4 . 1 8 4 4 Cave-ins Triggered . | . . . . . . . . . . . Exploration Rate (%) 35 | 3 33 26 31 59 57 14 3 96 37 29 Regions Visited 10 Branch Regions 3 Pre-discovered Areas 2 | . . . 1 1 . . . . . . Known Exits Taken 2 | . . . . . . 1 1 . . . Unknown Exits Taken 7 | 1 1 1 1 1 1 . . . 1 . Scrap Searched 1 | . . . 1 . . . . . . . Spaces Dug 3 | . . 1 . . . . . . 1 1 Terrain Destroyed 3 | . . 1 . . . . . . 1 1 Melee 3 | . . 1 . . . . . . 1 1 Projectile . | . . . . . . . . . . . AOE . | . . . . . . . . . . . Terrain Rammed . | . . . . . . . . . . . Walls Destroyed . | . . . . . . . . . . . Machines Disabled . | . . . . . . . . . . . Actions | -11 -10 -9 -9 -9 -8 -8 -7 -7 -6 -5 --------- Run | Yrd Mat Mat Min Exi Min Mat Fac DSF Fac Fac Total 4475 | 27 193 198 87 247 188 210 115 246 1534 1430 Wait 493 | 8 . 1 . . 2 10 . 10 18 444 Move 3852 | 18 185 186 85 246 180 174 105 203 1498 972 Hop 23 | . 2 1 1 . 4 . 1 6 4 4 Pick Up 17 | . 3 3 . 1 . 1 1 5 3 . Fast Attach 24 | 1 3 2 1 . . 6 1 6 1 3 Attach 9 | . . 1 . . . 1 1 1 3 2 Detach 1 | . . . . . . . . . . 1 Swap 5 | . . . . . 1 1 2 . 1 . Drop 17 | . . 3 . . . 6 4 3 1 . Fire . | . . . . . . . . . . . Melee 22 | . . 1 . . 1 11 . . 5 4 Ram . | . . . . . . . . . . . Kick . | . . . . . . . . . . . Crush . | . . . . . . . . . . . Escape Stasis 12 | . . . . . . . . 12 . . Rewire . | . . . . . . . . . . . Trap . | . . . . . . . . . . . Miscellaneous . | . . . . . . . . . . . Route ------- -11/Scrapyard -10/Materials (discovered 2 exits: *Mat / [*Min]) -9/Materials -9/Mines -9/Exiles -8/Mines -8/Materials -7/Factory (discovered 2 exits: *Low / DSF) -7/DSF -6/Factory (discovered 3 exits: *Fac x2 / [*Low]) -5/Factory (discovered 6 exits: *Fac x4 / Upp x2) History --------- Turn | Location | Event 4 | -11/Scrapyard | Discovered new exit (range 15) 20 | -11/Scrapyard | Entered Materials 53 | -10/Materials | Discovered new exit (range 10) 90 | -10/Materials | Discovered new exit (range 12) 94 | -10/Materials | Entered another Materials area 94 | -9/Materials | Evolved 2 slots: Propulsion x1, Utility x1 160 | -9/Materials | Discovered new exit (range 6) 161 | -9/Materials | Entered Mines 169 | -9/Mines | Received a Mining Laser from a helpful Derelict 171 | -9/Mines | Learned location of Storage (-9) 187 | -9/Mines | Deemed a non-threat by the Exiles lab entrance 187 | -9/Mines | Discovered new exit (range 5) 188 | -9/Mines | Entered Exiles 195 | -9/Exiles | Met 8R-AWN 201 | -9/Exiles | Met EX-HEX 209 | -9/Exiles | Met EX-BIN 212 | -9/Exiles | Aligned with FarCom system 212 | -9/Exiles | Given EX-Vault access code 219 | -9/Exiles | Opened EX-Vault 221 | -9/Exiles | Found Skeleton Box 229 | -9/Exiles | Warned to stay clear of 0b10 Research branches 233 | -9/Exiles | Exiles lab attacked by MAIN.C 241 | -9/Exiles | Learned location of Zion (-6) 258 | -9/Exiles | Discovered new exit (range 14) 261 | -9/Exiles | Left Exiles lab with Skeleton Box 261 | -9/Exiles | Entered Mines 319 | -8/Mines | Discovered new exit (range 10) 322 | -8/Mines | Entered Materials 322 | -8/Materials | Evolved 2 slots: Propulsion x1, Utility x1 343 | -8/Materials | Build established: Sprinter 420 | -8/Materials | Discovered new exit (range 5) 421 | -8/Materials | Identified exit to Factory 422 | -8/Materials | Entered Factory 422 | -7/Factory | Evolved 2 slots: Propulsion x1, Utility x1 436 | -7/Factory | Discovered new exit (range 15) 440 | -7/Factory | Identified exit to Lower Caves 456 | -7/Factory | Identified exit to DSF 456 | -7/Factory | Entered DSF 477 | -7/DSF | Additional patrols routed to DSF 484 | -7/DSF | Discovered new exit (range 14) 548 | -7/DSF | Entered Factory 548 | -6/Factory | Evolved 2 slots: Propulsion x1, Utility x1 674 | -6/Factory | Discovered new exit (range 11) 834 | -6/Factory | Build established: Hacker-Sprinter 851 | -6/Factory | Discovered new exit (range 6) 886 | -6/Factory | Spotted B-75 Beast 932 | -6/Factory | Discovered new exit (range 9) 965 | -6/Factory | Entered another Factory area 965 | -5/Factory | Evolved 2 slots: Propulsion x1, Utility x1 1555 | -5/Factory | Spotted B-75 Beast 1571 | -5/Factory | Discovered new exit (range 6) 1634 | -5/Factory | Identified exit to Upper Caves 1634 | -5/Factory | Identified exit to Factory 1697 | -5/Factory | Self-destructed Last Messages --------------- 01649_ Cesium-ion Thruster destroyed. 01649_ Subcomponent Replicator disabled. 01661_ Triggered Fusion Bomb Trap. 01661_ An explosion rips through the floor. 01661_ Nuclear Pulse Thruster destroyed. 01661_ Power Amplifier destroyed. 01661_ Nuclear Pulse Thruster destroyed. 01661_ Structural Scanner destroyed. 01661_ W-25 Informer destroyed. 01661_ A-15 Conveyor destroyed. 01661_ Fusion Modulator explodes. 01661_ Lgt. Deuterium Engine destroyed. 01661_ Fusion Modulator explodes. 01662_ U-05 Engineer lays Concrete. 01668_ U-05 Engineer builds a Wall. 01683_ C-30 ARC bursts open, deploying its payload. 01683_ S-27 Virus unfolds itself. 01683_ Xenon Bombardment Thruster destroyed. 01694_ VTOL Module destroyed. Map ----- +----------------------------------------------------+ | ?????????????????????????????????????????????????? | | ?????????????????????????????????????????????????? | | ?????????????????????????????????????????????????? | | ?????????????????????????????????????????????????? | | ?????????????????????????????????????????????????? | | ?????????????????????????????????????????????????? | | ?????????????????????????????????????????????????? | | ?????????????????????????????????????????????????? | | ?????????????????????????????????????????????????? | | ?????????????????????????????????????????????????? | | ?????????????????????????????????????????????????? | | ?????????????????????????????????????????????????? | | ?????????????????????????????????????????????????? | | ??????????????? ???????????????????????????????? | | ?????????????" ???????????????????????????????? | | ?????????????" ???????????????????????????????? | | ?????????????" #??????????????????????????????? | | ????????"????" #??????????????????????????????? | | ???????"" """"p #??????????????????????????????? | | ?????"""" """" #??????????????????????????????? | | ????? #??????????????????????????????? | | ????? #?????###??????????????????????? | | ?????? ####### ##?????????????????????? | | ?????# # Y #?????????????????????? | | ?????# p # ! ! =#?????????????????????? | | ?????# """ # @ #?????????????????????? | | ???? # """"" # = ""#?????????????????????? | | ???? # """"" + ""#?????????????????????? | | ???? # # T"#?????????????????????? | | ???? # """ # =]! ""#?????????????????????? | | ???? # """"" s # =]! ""#?????????????????????? | | ???? # """"" # ]! #?????????????????????? | | ???? # s ! ##########?????????????????????? | | ???? # s #??????????????????????????????? | | # s #??????######## ??????????? | | ###### ##################+##??????????? | | # ################ ##??????????? | | # # ### ##??????????? | | # # """" """" ### ##??????????? | | # # """" """" !### ######??????? | | # # """" """" ### ####+######??????? | | / + """" """" ### # ]] ##??????? | | # # """" """" #"" # ]] ##??????? | | # # """" """" #T # ######??? | | # # ### # "" ######??? | | # # ! + + """ + ##??? | | # # = ### # S" ### ##??? | | # # ### # """ ### ##??? | | ###### # ### + """ ### ##??? | | ###### ################ # ### ##### | +----------------------------------------------------+ Best States ------------- Heat Dissipation 40 Energy Generation 15 Energy Capacity 150 Matter Stores 300 Matter Capacity 300 Sight Range 16 Terrain Scan Density 10 Power Amplification 20 Armor Coverage 225 Evasion (%) 65 Offensive Hacking 40 Item Schematics ----------------- None Robot Schematics ------------------ None Fabricated ------------ Nothing Alien Tech Used ----------------- None Achievements -------------- None Challenges ------------ None Game ------ Seed gottagofast Manual? 1 Play Time 00:54:29 Cumulative 160.7 hours Start 2024.06.06 @ 22:33:17 End 2024.06.07 @ 12:19:49 Sessions 3 Manual Loads 0 Difficulty Rogue Special Mode None Game No. 163 Rogue 163 Adventurer 0 Explorer 0 Win Type - Total 9 Types 8/0/0/1/0/0/0/0/0 Lore% 67 Gallery% 78 Achievement% 64 Wizard Run 0 Options --------- Layout 1 ASCII 0 Keyboard 0 Movement Numpad Keybinds 0 Fullscreen 1 Font 24/Smallcaps Map View 50x35 Zoom Use 0% Tactical HUD 1 Map Filters NONE Filters NONE Steam 1 RUN: a5d4dac3-acbd-406a-90a6-99d8a9948392